Cogmind - Beta 16.1 @@@ ROGUE MODE // 2026.03.04 @ 04:23:41 Player: FAQ Result: Self-destructed Performance ------------- Evolutions (3) 1500 Regions Visited (8) 1600 Robots Destroyed (124) 620 Value Destroyed (3456) 3456 Prototype IDs (29) 580 Alien Tech Used (0) 0 Bonus (432) 432 TOTAL SCORE: 8188 Bonus ------- High Alert Combat Kills 11 Follower Combat Kills 121 Aligned with FarCom 300 Cogmind --------- Core Integrity 607/700 Matter 126/300 Energy 300/300 System Corruption 3% Temperature Cool (0) Movement Rolling (215) Ox9 Location -7/Factory Parts ------- > --- POWER (1) -------- Enhanced Nuclear Core > --- PROPULSION (5) --- Armored Treads Armored Treads Armored Treads Wheel > --- UTILITY (5) ------ Improved Heat Sink Huge Storage Unit Modified TNC Improved Utility Shielding > --- WEAPON (2) ------- Minigun > --- INVENTORY (25) --- Heavy Ion Engine Enhanced Nuclear Core Heat Sink Disposable Heat Sink Huge Storage Unit Improved Signal Interpreter Hardened Medium Armor Plating Improved Medium Armor Plating Hacking Suite Improved Medium Laser Improved Medium Laser Improved Medium Laser Advanced Beam Cannon Gauss Rifle Improved Light Cannon Improved Light Cannon Improved Light Cannon Improved Light Cannon Improved Light Cannon Rocket Launcher Heavy Missile Launcher Heavy Missile Launcher Katana Peak State ------------ > --- POWER ------------ Enhanced Nuclear Core > --- PROPULSION ------- Armored Treads Armored Treads Armored Treads Armored Treads Armored Treads > --- UTILITY ---------- Improved Heat Sink Huge Storage Unit Modified TNC Particle Charger Improved Utility Shielding > --- WEAPON ----------- Advanced Beam Cannon Minigun > --- INVENTORY -------- Heavy Ion Engine Enhanced Nuclear Core Improved Treads Wheel Heat Sink Disposable Heat Sink Huge Storage Unit Improved Signal Interpreter Hardened Medium Armor Plating Improved Medium Armor Plating Hacking Suite Improved Medium Laser Improved Medium Laser Improved Medium Laser Advanced Beam Cannon Gauss Rifle Improved Light Cannon Improved Light Cannon Improved Light Cannon Improved Light Cannon Improved Light Cannon Rocket Launcher Rocket Launcher Katana [Rating: 48] Favorites ----------- Power Cooled Ion Engine Engine Cooled Ion Engine Power Core Enhanced Nuclear Core Propulsion Armored Treads Treads Armored Treads Leg Aluminum Leg Wheel Wheel Utility Huge Storage Unit Device Disposable Heat Sink Storage Huge Storage Unit Processor Modified TNC Protection Medium Armor Plating Weapon Improved Light Cannon Energy Gun Medium Laser Energy Cannon Advanced Beam Cannon Ballistic Gun Assault Rifle Ballistic Cannon Improved Light Cannon Launcher Rocket Launcher Impact Weapon Hammer Slashing Weapon Katana Build | -11 -10 -10 -9 -9 -9 -8 -8 -7 ------- Run | Yrd Mat Min Mat Min Exi Min Mat Fac Slots Evolved 6 | . . . 2 . . . 2 2 Power . | . . . . . . . . . Propulsion 3 | . . . 1 . . . 1 1 Utility 3 | . . . 1 . . . 1 1 Weapon . | . . . . . . . . . Parts Attached 52 | 2 9 1 22 . . 2 10 6 Power 6 | . 1 . 3 . . . 1 1 Engine 5 | . 1 . 3 . . . 1 . Core 1 | . . . . . . . . 1 Reactor . | . . . . . . . . . Propulsion 17 | 2 . 1 10 . . . 1 3 Treads 16 | 2 . 1 10 . . . 1 2 Leg . | . . . . . . . . . Wheel 1 | . . . . . . . . 1 Hover . | . . . . . . . . . Flight . | . . . . . . . . . Utility 11 | . 3 . 3 . . 1 3 1 Device 4 | . 1 . 1 . . 1 1 . Storage 3 | . 2 . 1 . . . . . Processor 1 | . . . . . . . . 1 Hackware . | . . . . . . . . . Protection 3 | . . . 1 . . . 2 . Artifact . | . . . . . . . . . Weapon 18 | . 5 . 6 . . 1 5 1 Energy Gun 4 | . 2 . 2 . . . . . Energy Cannon 2 | . . . 1 . . 1 . . Ballistic Gun 3 | . 1 . 1 . . . 1 . Ballistic Cannon 4 | . . . 1 . . . 2 1 Launcher 2 | . 1 . 1 . . . . . Special Weapon . | . . . . . . . . . Impact Weapon 2 | . 1 . . . . . 1 . Slashing Weapon 1 | . . . . . . . 1 . Piercing Weapon . | . . . . . . . . . Special Melee Weapon . | . . . . . . . . . Unidentified Prototypes 5 | . . . 4 . . . . 1 Parts Lost 14 | . 1 . 3 . . 1 3 6 Power 3 | . 1 . 1 . . . 1 . Propulsion 3 | . . . . . . . . 3 Utility 4 | . . . 1 . . . 2 1 Weapon 4 | . . . 1 . . 1 . 2 Highest Loss Streak 5 | . 1 . 1 . . 1 2 5 To Critical Strikes . | . . . . . . . . . Average Backups 14 | 4 7 11 14 15 14 14 17 21 Power 1 | 1 . . 1 1 1 1 . 1 Propulsion 2 | 2 2 4 3 3 3 3 3 1 Utility 3 | . 1 2 2 3 3 4 4 5 Weapon 7 | 1 3 5 6 7 7 6 9 12 Tool/Special . | . . . . . . . . . Unused Backups 25 | 4 2 . 2 1 . . 1 15 Power 4 | . . . . 1 . . . 3 Propulsion 5 | 4 . . 1 . . . . . Utility 7 | . 2 . . . . . . 5 Weapon 9 | . . . 1 . . . 1 7 Tool/Special . | . . . . . . . . . Average Slot Usage (%) 96 | . 96 100 97 100 100 100 93 94 Engine 9 | . 13 14 10 11 11 11 8 . Treads 32 | . 28 28 32 33 33 33 35 34 Device 13 | . 10 14 16 11 11 11 17 13 Storage 10 | . 14 14 11 11 11 11 9 7 Processor 1 | . . . . . . . . 6 Protection 5 | . . . 3 11 11 11 5 7 Energy Gun 3 | . 13 14 3 . . . . . Energy Cannon 6 | . . . 7 11 11 14 8 . Ballistic Gun 4 | . 13 14 . . . . 1 6 Ballistic Cannon 6 | . . . 9 10 11 7 5 3 Peak Build Rating 48 | 6 8 8 25 25 25 27 35 48 Average Rating 23 | 5 7 8 17 24 25 25 31 43 On Entrance 18 | 6 6 8 8 25 25 25 27 35 Avg Prop Armor Cover (%) 22 | . . . . . . . . 22 Naked Turns . | . . . . . . . . . Heaviest Build 104 | 11 88 88 91 44 104 104 104 101 Greatest Support 100 | 40 40 40 60 60 60 60 80 100 Greatest Overweight (x) 9 | . 2 2 1 . 1 1 1 9 Average Overweight (x) . | . 1 2 . . . 1 1 2 Largest Inventory Capacity 25 | 8 25 25 25 15 25 25 25 25 Average Capacity 20 | 8 21 25 16 15 19 25 25 25 Most Carried 24 | 8 11 12 15 15 15 15 20 24 Average Carried 14 | 4 7 11 14 15 14 14 17 21 Final Capacity 25 | 8 25 25 15 15 25 25 25 25 Final Carried 23 | 4 11 11 15 15 15 15 20 23 Class Distribution -------------------- 99% | Mutant Dominant Class ---------------- Mutant | -10/Materials Mutant | -10/Mines Mutant | -9/Materials Mutant | -9/Mines Mutant | -9/Exiles Mutant | -8/Mines Mutant | -8/Materials Mutant | -7/Factory Resources | -11 -10 -10 -9 -9 -9 -8 -8 -7 ----------- Run | Yrd Mat Min Mat Min Exi Min Mat Fac Matter Collected 2013 | 226 238 10 622 153 . 33 257 474 Remotely . | . . . . . . . . . Salvage Created 3586 | 96 479 . 1116 326 . 40 801 728 Parts 228 | 6 25 . 93 14 . 3 50 37 Haulers Intercepted 8 | . 1 . 6 . . . . 1 Recyclers Shooed 6 | . . . . . . . 1 5 Parts Field Recycled . | . . . . . . . . . Retrieved Matter . | . . . . . . . . . Parts Self-Destructed . | . . . . . . . . . Prevented . | . . . . . . . . . Parts Restored . | . . . . . . . . . Kills | -11 -10 -10 -9 -9 -9 -8 -8 -7 ------- Run | Yrd Mat Min Mat Min Exi Min Mat Fac Combat Hostiles Destroyed 83 | . 12 . 25 9 . 1 22 14 Guns 11 | . 8 . 2 . . . . 1 Cannons 39 | . . . 13 5 . 1 14 6 AOE 31 | . 3 . 10 4 . . 7 7 Classes Destroyed 16 | 2 4 . 4 2 . . 2 2 Worker 5 | . . . 1 1 . . 2 1 Builder 7 | . . . 4 . . . 2 1 Tunneler 1 | 1 . . . . . . . . Hauler 8 | . 1 . 6 . . . . 1 Recycler 6 | 1 . . 1 . . . . 4 Mechanic 2 | . . . . . . . 1 1 Operator 3 | . . . 2 . . . 1 . Watcher 9 | . 2 . 5 . . . 1 1 Swarmer 20 | . 3 . 12 . . . 3 2 Grunt 32 | . 9 . 4 7 . 1 11 . Brawler 2 | . . . . 1 . . 1 . Duelist 3 | . . . . 1 . . 2 . Sentry 14 | . . . 9 . . . 4 1 Specialist 2 | . . . . . . . . 2 Hunter 6 | . . . . . . . 1 5 Programmer 4 | . . . . . . . . 4 Best Kill Streak 13 | 2 7 . 11 4 . 1 13 10 Combat Bots Only 9 | . 6 . 7 3 . 1 9 8 Max Kills in Single Turn 5 | 1 2 . 5 4 . 1 3 3 Gunslinging . | . . . . . . . . . Exploded 4 | . 2 . 4 3 . . 3 2 Melee . | . . . . . . . . . Uniques/NPCs Destroyed . | . . . . . . . . . Combat | -11 -10 -10 -9 -9 -9 -8 -8 -7 -------- Run | Yrd Mat Min Mat Min Exi Min Mat Fac Hostile Shots Fired 402 | . 58 . 100 23 . 10 97 114 Missed 135 | . 17 . 37 10 . 2 27 42 Hits 267 | . 41 . 63 13 . 8 70 72 Melee 4 | . . . . 1 . . 3 . Projectile 263 | . 41 . 63 12 . 8 67 72 Critical Strikes 7 | . . . 4 1 . . 2 . Damage Taken 4320 | . 474 . 803 182 . 136 1229 1496 Core 381 | . 101 . 63 15 . 15 94 93 Absorbed by Shields . | . . . . . . . . . Redirected to Shielding 38 | . . . . . . . . 38 Regen/Repaired (Parts) 508 | . . . . . . . 508 . Core Remaining (%) 79 | 100 . 59 . . . 76 82 . Volleys Fired 247 | 2 43 . 72 18 . 7 55 50 Largest 2 | 2 2 . 2 2 . 2 2 2 Hottest 136 | 60 70 . 101 101 . 136 136 93 Shots Fired 453 | 4 83 . 136 35 . 14 106 75 Gun 148 | 4 80 . 23 . . . . 41 Cannon 273 | . . . 107 32 . 14 96 24 Launcher 32 | . 3 . 6 3 . . 10 10 Special . | . . . . . . . . . Kinetic 213 | 2 40 . 58 16 . 1 43 53 Thermal 208 | 2 40 . 72 16 . 13 53 12 Explosive 32 | . 3 . 6 3 . . 10 10 Electromagnetic . | . . . . . . . . . Robot Hit Streak 20 | 2 8 . 12 8 . 3 15 20 Robot Miss Streak 7 | 1 4 . 7 1 . 2 6 2 Penetration Max . | . . . . . . . . . Secondary Targets . | . . . . . . . . . Shots Hit Robots 293 | 3 57 . 77 23 . 9 63 61 Core Hits 187 | 2 22 . 48 12 . 4 51 48 Critical Kills 2 | . 1 . . . . . 1 . Critical Parts Destroyed . | . . . . . . . . . Critical Strikes 8 | . 2 . 2 1 . . 3 . Burn 1 | . 1 . . . . . . . Meltdown 1 | . . . . . . . 1 . Destroy 1 | . 1 . . . . . . . Blast 5 | . . . 2 1 . . 2 . Melee Attacks 5 | . 2 . . . . . 2 1 Impact 3 | . 2 . . . . . 1 . Slashing 2 | . . . . . . . 1 1 Piercing . | . . . . . . . . . Sneak Attacks 1 | . . . . . . . . 1 Combat Hostiles . | . . . . . . . . . Follow-up Attacks . | . . . . . . . . . Damage Inflicted 9420 | 36 1088 . 2340 751 . 196 2351 2658 Guns 1460 | 36 680 . 157 . . . . 587 Cannons 3911 | . . . 1466 460 . 196 1370 419 Explosions 3985 | . 408 . 717 291 . . 981 1588 Melee 64 | . . . . . . . . 64 Ramming . | . . . . . . . . . Kinetic 2934 | 25 355 . 943 281 . 24 475 831 Thermal 2437 | 11 325 . 680 179 . 172 895 175 Explosive 3985 | . 408 . 717 291 . . 981 1588 Electromagnetic . | . . . . . . . . . Impact . | . . . . . . . . . Slashing 64 | . . . . . . . . 64 Piercing . | . . . . . . . . . Highest Corruption 3 | . . . . . . . . 3 Average Corruption 1 | . . . . . . . . 1 Corruption Purged . | . . . . . . . . . Corruption Blocked . | . . . . . . . . . Effects 4 | . . . . . . . . 4 Matter Fused 1 | . . . . . . . . 1 Parts Rejected 1 | . . . . . . . . 1 Data Loss (major) 2 | . . . . . . . . 2 Overload Shots . | . . . . . . . . . Overflow Damage 196 | . 73 . 55 . . . 37 31 Projectiles 43 | . . . 17 . . . 17 9 Explosions 153 | . 73 . 38 . . . 20 22 Melee . | . . . . . . . . . Knockbacks 14 | . . . 4 2 . 1 7 . Impact . | . . . . . . . . . Kinetic 14 | . . . 4 2 . 1 7 . Secondary . | . . . . . . . . . Self-Inflicted Damage 293 | . . . 87 . . . . 206 Shots 12 | . . . 2 . . . . 10 Rammed . | . . . . . . . . . Targets Rammed . | . . . . . . . . . Kicked . | . . . . . . . . . Crushed . | . . . . . . . . . Highest Temperature 415 | . 42 . 415 197 . 191 165 34 Average Temperature 49 | . 12 . 50 89 . 85 38 14 Received Heat Transfer 999 | . 243 . 204 99 . 72 261 120 Siege Activations . | . . . . . . . . . Martial Activations . | . . . . . . . . . Shielding Activations . | . . . . . . . . . Robots Disrupted . | . . . . . . . . . Combat Hostiles . | . . . . . . . . . Robots Corrupted . | . . . . . . . . . Combat Hostiles . | . . . . . . . . . Parts Fried . | . . . . . . . . . Impact Corruptions . | . . . . . . . . . Robots Melted 2 | . 1 . . . . . 1 . Combat Hostiles 2 | . 1 . . . . . 1 . Parts Melted 7 | . 4 . 2 . . . 1 . Heat Transferred 4548 | 25 953 . 1369 296 . 296 1369 240 Parts Sabotaged . | . . . . . . . . . Parts Stolen . | . . . . . . . . . Parts Stripped . | . . . . . . . . . Power Chain Reactions . | . . . . . . . . . Alert | -11 -10 -10 -9 -9 -9 -8 -8 -7 ------- Run | Yrd Mat Min Mat Min Exi Min Mat Fac Maximum Alert Level 2 | . . . 1 1 . . 2 1 Low Security (%) 72 | 100 100 100 35 95 . 100 55 80 Level 1 27 | . . . 64 4 . . 41 19 Level 2 . | . . . . . . . 3 . Level 3 . | . . . . . . . . . Level 4 . | . . . . . . . . . Level 5 . | . . . . . . . . . High Security . | . . . . . . . . . Max Security . | . . . . . . . . . Peak Influence 411 | 10 173 7 375 211 . 81 411 265 Initial 142 | . . 7 . 142 . . . 79 Average 131 | 2 47 . 260 120 . 19 168 75 Influence Increases 2921 | 10 357 . 941 236 . 188 719 470 Destroy 0b10 Robot/C 1840 | . 240 . 580 180 . 120 440 280 Destroy 0b10 Robot/NC 210 | 10 15 . 95 5 . . 40 45 Destroy Leader 446 | . 36 . 172 30 . 20 124 64 Allied During Kill 29 | . . . 11 . . 18 . . Successful Hack 80 | . 12 . 21 . . . 18 29 Disable Machine 45 | . . . 15 . . . 15 15 Destroy Structure 166 | . 24 . 47 21 . . 52 22 Lose Combat Pursuer 105 | . 30 . . . . 30 30 15 Influence Decreases 2739 | 10 338 19 576 585 16 188 543 464 Entered New Map 348 | . . 12 . 223 16 . . 97 Time Decay 2101 | 10 328 7 556 362 . 148 383 307 Lost Part 100 | . 10 . 20 . . . 10 60 Lost Ally 40 | . . . . . . 40 . . Purge Threat 150 | . . . . . . . 150 . Squads Dispatched 15 | . 1 . 2 . . . 9 3 Investigation 3 | . 1 . 1 . . . 1 . Extermination 2 | . . . . . . . . 2 Reinforcement 4 | . . . 1 . . . 2 1 Assault . | . . . . . . . . . Garrison 6 | . . . . . . . 6 . Intercept . | . . . . . . . . . Searches Triggered . | . . . . . . . . . Construction Impeded 2 | . . . . . . . 1 1 Haulers Reinforced . | . . . . . . . . . Active Scanning Responses . | . . . . . . . . . Cargo Convoy Interrupts 1 | . . . . . . . . 1 Stealth | -11 -10 -10 -9 -9 -9 -8 -8 -7 --------- Run | Yrd Mat Min Mat Min Exi Min Mat Fac Distress Signals 9 | . 1 . 5 . . . 3 . Communications Jammed . | . . . . . . . . . Distress Signals . | . . . . . . . . . Times Spotted 129 | . 20 . 38 8 . 8 31 24 Peak Tracking Total 11 | . 5 . 8 3 . 3 4 11 Tactical Retreats 5 | . 1 . . . . 1 2 1 Traps | -11 -10 -10 -9 -9 -9 -8 -8 -7 ------- Run | Yrd Mat Min Mat Min Exi Min Mat Fac Traps Triggered 6 | . 1 . 1 . . . . 4 Indirectly . | . . . . . . . . . Trap Hack Attempts . | . . . . . . . . . Triggered . | . . . . . . . . . Disarmed . | . . . . . . . . . Reprogrammed . | . . . . . . . . . Reused . | . . . . . . . . . Traps Extracted . | . . . . . . . . . Installed . | . . . . . . . . . Triggered . | . . . . . . . . . Machines | -11 -10 -10 -9 -9 -9 -8 -8 -7 ---------- Run | Yrd Mat Min Mat Min Exi Min Mat Fac Machines Disabled 4 | . . . 2 . . . 1 1 Max in Single Turn 1 | . . . 1 . . . 1 1 Machines Repaired . | . . . . . . . . . Machines Dismantled . | . . . . . . . . . Machines Sabotaged . | . . . . . . . . . Overloaded Fab Kills . | . . . . . . . . . Hacking | -11 -10 -10 -9 -9 -9 -8 -8 -7 --------- Run | Yrd Mat Min Mat Min Exi Min Mat Fac Machines Accessed 19 | . 4 . 7 . 2 . 3 3 Terminals 14 | . 4 . 6 . . . 2 2 Fabricators . | . . . . . . . . . Repair Stations 1 | . . . . . . . 1 . Recycling Units . | . . . . . . . . . Scanalyzers 2 | . . . 1 . . . . 1 Garrison Access . | . . . . . . . . . Total Hacks 59 | . 12 . 28 . 5 . 10 4 Successful 37 | . 6 . 16 . 5 . 8 2 Failed 22 | . 6 . 12 . . . 2 2 Catastrophic 3 | . 2 . . . . . . 1 Database Lockouts . | . . . . . . . . . Manual 33 | . 10 . 20 . 1 . 2 . Terminals 46 | . 12 . 25 . . . 6 3 Fabricators . | . . . . . . . . . Repair Stations 4 | . . . . . . . 4 . Recycling Units . | . . . . . . . . . Scanalyzers 4 | . . . 3 . . . . 1 Garrison Access . | . . . . . . . . . Terminal Hacks 13 | . . . 4 . 5 . 3 1 Record 4 | . . . . . 4 . . . Robot Analysis 2 | . . . 2 . . . . . Prototype ID Bank 1 | . . . 1 . . . . . Open DSF 1 | . . . . . . . . 1 Unreport Threat 1 | . . . . . . . 1 . Transport Status 1 | . . . . . . . 1 . Hauler Manifests 1 | . . . 1 . . . . . Registered Components 1 | . . . . . . . 1 . Proto ID Catalog 1 | . . . . . 1 . . . Fabricator Hacks . | . . . . . . . . . Repair Station Hacks 4 | . . . . . . . 4 . Scan Component 2 | . . . . . . . 2 . Repair 2 | . . . . . . . 2 . Recycling Unit Hacks . | . . . . . . . . . Scanalyzer 4 | . . . 3 . . . . 1 Retrieve Study 4 | . . . 3 . . . . 1 Garrison Access Hacks . | . . . . . . . . . Unauthorized Hacks 16 | . 6 . 9 . . . 1 . Terminals 16 | . 6 . 9 . . . 1 . Botnet 8 | . 3 . 4 . . . 1 . Skim 8 | . 3 . 5 . . . . . Fabricators . | . . . . . . . . . Repair Stations . | . . . . . . . . . Recycling Units . | . . . . . . . . . Scanalyzers . | . . . . . . . . . Garrison Access . | . . . . . . . . . Data Cores Recovered 2 | . . . 1 . . . 1 . Used 1 | . . . . . . . 1 . Hacking Detections 14 | . 3 . 6 . . . 3 2 Full Trace Events 2 | . . . 1 . . . 1 . Feedback Events . | . . . . . . . . . Feedback Blocked . | . . . . . . . . . Robot Schematics Acquired . | . . . . . . . . . Robots Built . | . . . . . . . . . Authchips . | . . . . . . . . . Time . | . . . . . . . . . Total Robot Build Rating . | . . . . . . . . . Part Schematics Acquired . | . . . . . . . . . Parts Built . | . . . . . . . . . Authchips . | . . . . . . . . . Time . | . . . . . . . . . Total Part Build Rating . | . . . . . . . . . Part Studies Acquired 4 | . . . 3 . . . . 1 Parts Repaired 2 | . . . . . . . 2 . Time 76 | . . . . . . . 76 . Parts Recycled . | . . . . . . . . . Recycled Matter . | . . . . . . . . . Retrieved Matter . | . . . . . . . . . Retrieved Components . | . . . . . . . . . Parts Scanalyzed . | . . . . . . . . . Part Schematics Acquired . | . . . . . . . . . Parts Damaged . | . . . . . . . . . Bothacking | -11 -10 -10 -9 -9 -9 -8 -8 -7 ------------ Run | Yrd Mat Min Mat Min Exi Min Mat Fac Used RIF Installer . | . . . . . . . . . Robots Hacked . | . . . . . . . . . Non-combat . | . . . . . . . . . Combat . | . . . . . . . . . Robot Hacks Applied . | . . . . . . . . . Relay Couplers Released . | . . . . . . . . . Fabnet Peak Effective % . | . . . . . . . . . Robots Rewired . | . . . . . . . . . Allies Hacked . | . . . . . . . . . Hacks Repelled . | . . . . . . . . . Allies | -11 -10 -10 -9 -9 -9 -8 -8 -7 -------- Run | Yrd Mat Min Mat Min Exi Min Mat Fac Total Allies 4 | . . 1 . 3 . . . . Largest Group 3 | . . 1 1 3 3 3 1 . Highest-Rated Group 40 | . . 31 31 40 40 40 8 . Highest-Rated Ally 31 | . . 31 31 16 16 16 8 . Total Orders . | . . . . . . . . . Ally Attacks 43 | . . . 17 . . 20 6 . Total Damage 415 | . . . 188 . . 171 56 . Kills 10 | . . . 4 . . 5 1 . Allies Corrupted . | . . . . . . . . . Allies Melted . | . . . . . . . . . Intel | -11 -10 -10 -9 -9 -9 -8 -8 -7 ------- Run | Yrd Mat Min Mat Min Exi Min Mat Fac Active Infowar (turns) 3338 | . 863 202 1080 . . . . 1193 Seismic 2145 | . 863 202 1080 . . . . . T.N.C. 1193 | . . . . . . . . 1193 Robot Analysis Total 2 | . . . 2 . . . . . Derelict Logs Recovered 1 | . . . . 1 . . . . Drone Launches . | . . . . . . . . . Drone Recoveries . | . . . . . . . . . Exploration | -11 -10 -10 -9 -9 -9 -8 -8 -7 ------------- Run | Yrd Mat Min Mat Min Exi Min Mat Fac Turns Passed 7542 | 62 1135 202 1839 832 508 649 1121 1194 Spaces Moved 3016 | 33 344 61 885 439 251 246 313 444 Core . | . . . . . . . . . Treads 2939 | 33 344 61 885 439 251 246 313 367 Legs . | . . . . . . . . . Wheels 77 | . . . . . . . . 77 Hover . | . . . . . . . . . Flight . | . . . . . . . . . Fastest Speed 160 | 160 160 320 160 170 170 250 250 170 Average Speed 213 | 160 280 320 174 170 201 250 250 232 Slowest Speed 320 | 160 320 320 240 170 250 250 250 250 Overloaded Moves . | . . . . . . . . . Propulsion Burnouts . | . . . . . . . . . Robots Hopped . | . . . . . . . . . Potential Cave-ins . | . . . . . . . . . Cave-ins Triggered . | . . . . . . . . . Exploration Rate (%) 48 | 3 63 17 84 94 60 71 32 16 Regions Visited 8 Branch Regions 4 Pre-discovered Areas 1 | . . . . . 1 . . . Known Exits Taken 2 | . . . . . . 1 1 . Unknown Exits Taken 6 | 1 1 1 1 1 1 . . . Scrap Searched 2 | . . 1 . 1 . . . . Spaces Dug 4 | . 1 . . . . . 3 . Terrain Destroyed 179 | . 27 . 43 22 . . 54 33 Melee 3 | . 1 . . . . . 2 . Projectile 12 | . . . 2 . . . 10 . AOE 164 | . 26 . 41 22 . . 42 33 Terrain Rammed . | . . . . . . . . . Walls Destroyed . | . . . . . . . . . Machines Disabled . | . . . . . . . . . Actions | -11 -10 -10 -9 -9 -9 -8 -8 -7 --------- Run | Yrd Mat Min Mat Min Exi Min Mat Fac Total 3665 | 40 426 70 1051 487 253 267 537 534 Wait 235 | . 18 8 25 23 . 12 137 12 Move 3008 | 32 343 60 884 438 250 245 312 444 Hop . | . . . . . . . . . Pick Up 37 | . 7 . 12 1 1 . 7 9 Fast Attach 21 | . 3 . 9 . . 1 6 2 Attach 14 | 2 1 . 2 . . 1 3 5 Detach 12 | 2 2 . 4 . . 1 2 1 Swap 53 | . 5 1 23 6 1 . 11 6 Drop 31 | 2 2 1 20 1 1 . 2 2 Fire 247 | 2 43 . 72 18 . 7 55 50 Melee 5 | . 2 . . . . . 2 1 Ram . | . . . . . . . . . Kick . | . . . . . . . . . Crush . | . . . . . . . . . Escape Stasis 2 | . . . . . . . . 2 Rewire . | . . . . . . . . . Trap . | . . . . . . . . . Miscellaneous . | . . . . . . . . . Route ------- -11/Scrapyard -10/Materials (discovered 3 exits: *Mat x2 / [*Min]) -10/Mines -9/Materials (discovered 5 exits: *Mat x3 / [*Min] / [*Sto]) -9/Mines (discovered 3 exits: *Mat x2 / *Exi) -9/Exiles -8/Mines -8/Materials (discovered 2 exits: *Fac x2) -7/Factory History --------- Turn | Location | Event 5 | -11/Scrapyard | Discovered new exit (range 2) 63 | -11/Scrapyard | Entered Materials 253 | -10/Materials | Discovered new exit (range 13) 307 | -10/Materials | Build established: Mutant 764 | -10/Materials | Discovered new exit (range 14) 1002 | -10/Materials | Discovered new exit (range 6) 1198 | -10/Materials | Entered Mines 1371 | -10/Mines | Received a Mining Laser from a helpful Derelict 1381 | -10/Mines | Discovered new exit (range 6) 1400 | -10/Mines | Entered Materials 1400 | -9/Materials | Accompanied by 1 ally 1400 | -9/Materials | Evolved 2 slots: Propulsion x1, Utility x1 1705 | -9/Materials | Discovered new exit (range 15) 1980 | -9/Materials | Discovered new exit (range 12) 2085 | -9/Materials | Destroyed 7 combat bots 2406 | -9/Materials | Discovered new exit (range 15) 2885 | -9/Materials | Identified exit to Materials 2965 | -9/Materials | Loaded intel: 11 terminal locations 2980 | -9/Materials | Learned location of 1 exit from Storage 3007 | -9/Materials | Loaded intel: 2 recycling unit locations 3239 | -9/Materials | Entered Mines 3712 | -9/Mines | Assisted by bots powering up and referring to "LRC-V3" 3896 | -9/Mines | Learned 4 Materials zone layouts 3921 | -9/Mines | Discovered exit to Materials (range 10) 4058 | -9/Mines | Deemed a non-threat by the Exiles lab entrance 4058 | -9/Mines | Discovered new exit (range 5) 4071 | -9/Mines | Entered Exiles 4071 | -9/Exiles | Accompanied by 3 allies 4117 | -9/Exiles | Met 8R-AWN 4141 | -9/Exiles | Met EX-HEX 4190 | -9/Exiles | Met EX-BIN 4279 | -9/Exiles | Aligned with FarCom system 4281 | -9/Exiles | Given EX-Vault access code 4320 | -9/Exiles | Opened EX-Vault 4335 | -9/Exiles | Found Modified TNC 4389 | -9/Exiles | Warned to stay clear of 0b10 Research branches 4456 | -9/Exiles | Met EX-DEC 4474 | -9/Exiles | Learned location of Zion (-7) 4546 | -9/Exiles | Discovered new exit (range 14) 4579 | -9/Exiles | Left Exiles lab with Modified TNC 4579 | -9/Exiles | Entered Mines 4579 | -8/Mines | Accompanied by 3 allies 5203 | -8/Mines | Discovered exit to Materials (range 9) 5228 | -8/Mines | Entered Materials 5228 | -8/Materials | Accompanied by 1 ally 5228 | -8/Materials | Evolved 2 slots: Propulsion x1, Utility x1 5229 | -8/Materials | Identified exit to Factory 5308 | -8/Materials | Garrison activated, responded to threat 5790 | -8/Materials | Garrison activated, responded to threat 5828 | -8/Materials | Destroyed 9 combat bots 5861 | -8/Materials | Discovered exit to Factory (range 16) 6271 | -8/Materials | Repaired Arm. Treads 6310 | -8/Materials | Repaired Arm. Treads 6349 | -8/Materials | Entered Factory 6349 | -7/Factory | Evolved 2 slots: Propulsion x1, Utility x1 7236 | -7/Factory | Cargo convoy interrupted 7286 | -7/Factory | Destroyed 8 combat bots 7306 | -7/Factory | Lost 5 parts (2n1u2w) 7543 | -7/Factory | Self-destructed Last Messages --------------- 07311_ U-05 Engineer builds a Wall. 07315_ U-05 Engineer lays Concrete. 07316_ U-05 Engineer builds a Wall. 07317_ P-60 Hacker destroyed. 07318_ Acquired 50 matter. 07321_ U-05 Engineer lays Concrete. 07325_ K-01 Serf cleans the Assembly Bed. 07342_ R-06 Scavenger collects Target Analyzer. 07346_ R-06 Scavenger collects Remote Datajack. 07350_ R-06 Scavenger collects Shock Rifle. 07353_ R-06 Scavenger collects Mic. Nuclear Core. 07384_ Triggered Shock Trap. 07384_ The floor emits a surge of raw power. 07384_ System corrupted (+2). 07390_ System corrupted: Substantial component data lost. 07390_ U-05 Engineer lays Concrete. 07408_ Acquired Hvy. Missile Launcher. 07428_ K-01 Serf cleans the Assembly Bed. 07443_ System corrupted: Substantial component data lost. 07489_ System corrupted: Matter fused (-6). Map ----- +----------------------------------------------------+ | ?????????????????????????????????????????????????? | | ?????????????????????????????????????????????????? | | ?????????????????????????????????????????????????? | | ?????????????????????????????????????????????????? | | ?????????????????????????????????????????????????? | | ?????????????????????????????????????????????????? | | ?????????????????????????????????????????????????? | | ?????????????????????????????????????????????????? | | ?????????????????????????????????????????????????? | | ?????????????????????????????????????????????????? | | ?????????????????????????????????????????????????? | | ?????????????????????????????????????????????????? | | ?????????????????????????????????????????????????? | | ?????????????????????????????????????????????????? | | ?????????????????????????????????????????????????? | | ?????????????????????????????????????????????????? | | ?????????????????????????????????????????????????? | | ?????????????????????????????????????????????????? | | ?????????????????????????????????????????????????? | | ?????????????????????????????????????????????????? | | ?????????????????????????????????????????????????? | | ?????????????????????????????????????????????????? | | ?????????????????????????????????????????????????? | | ?????????????????????##############??????????????? | | ?????????????????????# #??????????????? | | ?????????????????????# @ #??????????????? | | ?????????????????????# """ #??????????????? | | ?????????????????????# """ +??????????????? | | ?????????????????????# """ #??????????????? | | ?????????????????????# #??????????????? | | ?????????????????????# #??????????????? | | ?????????????????????# """""" #??????????????? | | ?????????????????????# """""" #??????????????? | | ?????????????????????# """""" #??????????????? | | ?????????????????????# """""" #??????????????? | | ?????????????????????# #??????????????? | | ???????????????????#########+##################### | | ???????????????????# | | ???????????????????# | | ???????????????????# """ """ """ """ | | ???????????????????# """ """ """ R" | | ?????#####?????????# """ """ """ """ | | ????? = #?????????# ##########+ | | ?????" ########### """ """ """ """ #?????????? | | # """" ## """ """ """ """ #?????????? | | # """" ## """ """ """ """ ######????? | | # """" ## +????? | | # """" ## """ """ """ """ ######????? | | # """" ## """ """ """ """ #?????????? | | # ########### """ """ """ """ #?????????? | +----------------------------------------------------+ Best States ------------- Heat Dissipation 48 Coolant Potential 50 Energy Generation 17 Energy Capacity 300 Matter Stores 300 Matter Capacity 300 Sight Range 16 Terrain Scan Density 10 Armor Coverage 225 Utility Shielding 66 Evasion (%) 40 Recoil Reduction 5 Particle Charging 15 Item Schematics ----------------- None Robot Schematics ------------------ None Fabricated ------------ Nothing Repaired ---------- Arm. Treads | 13% | -8/Materials Arm. Treads | 17% | -8/Materials Studied --------- Rocket Launcher | -9/Materials | Hacked Imp. Treads | -9/Materials | Hacked Imp. Light Cannon | -9/Materials | Hacked Minigun | -7/Factory | Hacked Alien Tech Used ----------------- None Achievements -------------- None Challenges ------------ None Game ------ Seed GlidesysBraceSink Manual? 0 Play Time 00:41:27 Cumulative 70.6 hours Start 2026.03.03 @ 13:42:37 End 2026.03.04 @ 04:23:41 Sessions 5 Manual Loads 0 Difficulty Rogue Special Mode None Game No. 107 Rogue 107 Adventurer 0 Explorer 0 Win Type - Total 2 Types 2/0/0/0/0/0/0/0/0/0 Lore% 36 Gallery% 41 Achievement% 32 Wizard Run 0 Options --------- Layout 0 ASCII 1 Keyboard 1 Movement Numpad Keybinds 0 Fullscreen 1 Font 18/VGA_Max Map View 76x50 Zoom Use 0% Tactical HUD 1 Map Filters NONE Filters NONE Steam 1 RUN: b24b7e20-39fb-40e5-b43d-2e15a326eb0d